bitfinex/quotes_SOLUSD_20240930
["timestamp","ask_amount","ask_price","bid_price","bid_amount"]
[1727691482885,6.4765,154.41,154.36,22.7938]
[1727691483522,6.4759,154.42,154.36,22.7938]
[1727691483723,43.776884,154.45,154.36,16.4022]
[1727691483724,6.4772,154.39,154.36,16.4022]
[1727691483936,1.61947297,154.38,154.32,22.4195]
[1727691484151,23.776884,154.39,154.32,22.4195]
[1727691484451,6.4779,154.37,154.32,22.4195]
[1727691484655,6.4784,154.36,154.32,22.4195]
[1727691484852,6.4787,154.35,154.32,16.2745]
[1727691485153,20.0,154.44,154.35,6.4786]
[1727691485358,30.253484,154.41,154.34,6.4791]
[1727691485660,1.61940171,154.4,154.34,6.4791]
[1727691486031,1.61940171,154.4,154.32,16.2745]
[1727691486032,1.61940171,154.4,154.35,6.4787]
[1727691486245,1.61940171,154.4,154.36,0.25098]
[1727691487065,8.09620171,154.4,154.36,0.25098]
[1727691487549,23.776884,154.39,154.33,6.4795]
[1727691487892,1.61951869,154.38,154.33,0.25098]
[1727691488378,30.252684,154.43,154.36,0.25098]
[1727691488535,32.11957874,154.62,154.36,0.25098]
[1727691488536,23.776884,154.41,154.36,0.25098]
[1727691488737,1.61940107,154.4,154.36,0.12549]
[1727691488969,8.09600107,154.4,154.36,0.12549]
[1727691489139,23.776884,154.39,154.35,0.12549]
[1727691489463,30.254484,154.38,154.32,16.2745]
[1727691489760,25.39653742,154.38,154.32,22.7544]
[1727691490862,25.39653742,154.38,154.33,0.25098]
[1727691491267,20.0,154.4,154.33,0.25098]
[1727691491449,1.61951747,154.39,154.35,0.25098]
[1727691492138,8.09661747,154.39,154.35,0.25098]
[1727691492344,6.4771,154.39,154.34,0.12549]
[1727691492548,1.6196237,154.38,154.34,0.12549]
[1727691492842,8.0971237,154.38,154.33,0.25098]
[1727691493171,6.4775,154.38,154.33,0.25098]
[1727691493376,23.776884,154.36,154.28,21.7487]
[1727691493536,23.776884,154.36,154.29,7.71256502]
[1727691493737,6.4784,154.36,154.3,6.4805]
[1727691493967,6.4783,154.36,154.3,6.4805]
[1727691494385,1.61984983,154.35,154.3,6.4805]
[1727691494682,1.61984983,154.35,154.29,6.4812]
[1727691494878,8.09874983,154.35,154.3,0.12549]
[1727691495069,6.4789,154.35,154.3,0.25098]
[1727691495257,6.4783,154.36,154.3,6.73178]
[1727691495992,26.4775,154.38,154.32,6.73088]
[1727691496158,23.776884,154.39,154.33,1.23069855]
[1727691496356,6.4772,154.39,154.34,0.25098]
[1727691496582,26.4767,154.4,154.34,6.73008]
[1727691496878,6.4767,154.4,154.34,6.73008]
[1727691497085,6.4762,154.42,154.36,6.72918]
[1727691497391,1.6193568,154.41,154.36,0.25098]
[1727691497692,8.0958568,154.41,154.36,0.25098]
[1727691497867,6.4765,154.41,154.36,0.25098]
[1727691498567,43.776884,154.44,154.36,0.12549]
[1727691498888,43.776884,154.44,154.28,21.7487]
[1727691498889,6.4769,154.4,154.35,0.25098]
[1727691499062,1.61942294,154.39,154.35,0.25098]
[1727691499388,6.475,154.45,154.38,6.4775]
[1727691499689,6.475,154.45,154.39,6.72768]
[1727691499690,6.4746,154.45,154.39,6.72768]
[1727691499985,8.0939979,154.44,154.39,0.25098]
[1727691500188,1.61902416,154.43,154.39,0.25098]
[1727691500358,6.475,154.44,154.39,0.25098]
[1727691500778,1.61902409,154.43,154.39,0.25098]
[1727691500978,6.4747,154.45,154.39,6.72788]
[1727691501175,23.776884,154.44,154.4,1.22895091]
[1727691501377,20.0,154.49,154.41,0.25098]
[1727691501566,6.4738,154.47,154.41,7.95530288]
[1727691501971,1.61871728,154.46,154.41,0.25098]
[1727691502277,6.4746,154.45,154.41,0.12549]
[1727691502464,1.61890319,154.44,154.41,0.12549]
[1727691502963,43.776884,154.46,154.41,0.12549]
[1727691503287,8.09350093,154.45,154.4,0.12549]
[1727691503990,8.09350093,154.45,154.4,0.25098]
[1727691504361,6.4762,154.42,154.36,22.6881]
[1727691504563,23.776884,154.44,154.36,22.6881]
[1727691504772,23.776884,154.42,154.36,22.6881]
[1727691504973,23.776884,154.42,154.36,29.1663]
[1727691505672,1.61926456,154.41,154.36,29.1663]
[1727691505893,1.61926456,154.41,154.37,0.25098]
[1727691506189,23.776884,154.42,154.37,6.72878]
[1727691506491,8.09556505,154.41,154.36,16.302]
[1727691506784,23.776884,154.4,154.36,16.302]
[1727691507184,23.776884,154.41,154.36,16.302]
[1727691507364,23.776884,154.42,154.36,22.78]
[1727691507560,1.61930082,154.41,154.36,22.78]
[1727691507764,1.61930082,154.41,154.37,0.25098]
[1727691507980,1.61930082,154.41,154.37,6.72888]
[1727691508659,23.776884,154.42,154.37,6.72888]
[1727691509301,25.39618221,154.42,154.37,6.72888]
[1727691509467,23.776884,154.42,154.38,6.4774]
[1727691509670,23.776884,154.43,154.38,6.4774]
[1727691510297,20.0,154.45,154.39,6.4769]
[1727691510467,20.0,154.48,154.39,6.60249]
[1727691510662,1.6190084,154.47,154.39,6.60249]
[1727691511091,1.6190084,154.47,154.4,6.60209]
[1727691511271,1.61894262,154.46,154.41,0.12549]
[1727691511673,6.4754,154.43,154.39,0.12549]
[1727691511891,1.61918646,154.42,154.39,0.25098]
[1727691512076,6.475,154.44,154.39,0.25098]
[1727691512674,23.776884,154.43,154.39,0.25098]
[1727691513369,23.776884,154.44,154.39,6.477]
[1727691513693,6.4741,154.47,154.42,0.12549]
[1727691513873,6.4742,154.46,154.42,0.12549]
[1727691514073,1.61884658,154.45,154.42,0.12549]
[1727691514391,6.4742,154.46,154.41,0.25098]
[1727691516304,20.0,154.49,154.42,0.12549]
[1727691516470,6.4736,154.48,154.42,6.60119]
[1727691516794,6.4738,154.47,154.43,0.12549]
[1727691516992,16.1794,154.52,154.42,0.12549]
[1727691517306,6.4746,154.45,154.4,6.60179]
[1727691517488,1.61899529,154.44,154.4,6.60209]
[1727691522307,23.776884,154.44,154.4,6.60209]
[1727691522803,6.4737,154.47,154.42,6.4757]
[1727691523105,20.0,154.52,154.43,1.22830224]
[1727691523484,16.1784,154.53,154.44,0.25098]
[1727691523809,1.61848769,154.52,154.44,0.12549]
[1727691523994,6.474,154.47,154.44,0.12549]
[1727691524396,6.474,154.47,154.43,15.4996]
[1727691524397,1.61867161,154.46,154.43,15.4996]
[1727691524796,1.61870686,154.45,154.43,15.4996]
[1727691525006,6.4745,154.45,154.41,0.12549]
[1727691525195,30.251084,154.46,154.41,6.72708]
[1727691525397,6.4742,154.46,154.41,6.72708]
[1727691526097,6.4728,154.5,154.45,6.4745]
[1727691526319,6.4725,154.5,154.45,6.4742]
[1727691526493,6.4725,154.5,154.46,0.25098]
[1727691527110,1.61829501,154.49,154.46,0.25098]
[1727691527314,1.61829501,154.49,154.46,0.12549]
[1727691527696,6.4717,154.52,154.46,0.12549]
[1727691527995,6.4717,154.52,154.47,6.4737]
[1727691528196,38.0617,154.57,154.47,0.12549]
[1727691528197,6.4722,154.51,154.47,0.12549]
[1727691530001,6.4717,154.52,154.48,0.12549]
[1727691530199,6.4709,154.54,154.49,6.4728]
[1727691530407,6.4705,154.55,154.5,6.59759]
[1727691530708,8.08865262,154.54,154.51,0.12549]
[1727691530905,8.08865262,154.54,154.49,6.4728]
[1727691531216,8.08865262,154.54,154.5,0.12549]
[1727691531522,6.4708,154.54,154.5,1.47743607]
[1727691531926,16.1735,154.58,154.5,7.94983607]
[1727691532120,7.3000212,154.56,154.51,6.472]
[1727691532519,7.3000212,154.56,154.52,1.22603943]
[1727691532520,0.8300212,154.56,154.52,1.22603943]
[1727691532723,7.3001212,154.56,154.52,0.25098]
[1727691532905,8.08836616,154.55,154.5,6.72338]
[1727691533225,7.3000212,154.56,154.52,0.25098]
[1727691533421,1.61773902,154.55,154.52,0.12549]
[1727691533607,7.3000212,154.56,154.52,0.12549]
[1727691534213,7.3000212,154.56,154.52,0.25098]
[1727691535122,7.3000212,154.56,154.52,7.94820065]
[1727691535123,0.8300212,154.56,154.52,7.94820065]
[1727691535500,8.91759194,154.56,154.52,0.25098]
[1727691536104,2.44759194,154.56,154.46,21.7771]
[1727691536300,23.776884,154.55,154.46,21.7771]
[1727691536517,30.248184,154.53,154.48,6.4729]
[1727691537120,30.248184,154.53,154.46,21.7771]
[1727691537121,6.4708,154.54,154.49,6.4726]
[1727691537323,6.4708,154.54,154.46,21.7771]
[1727691537324,30.247384,154.55,154.5,6.4723]
[1727691537501,30.247384,154.55,154.5,0.25098]
[1727691537502,6.4708,154.54,154.5,0.25098]
[1727691539525,6.4708,154.54,154.5,1.47716187]
[1727691539732,23.776884,154.55,154.5,1.47716187]
[1727691539906,23.776884,154.55,154.5,6.72328]
[1727691540103,6.4708,154.54,154.5,0.25098]
[1727691540308,1.61786593,154.53,154.5,0.25098]
[1727691540721,6.4717,154.52,154.48,6.4731]
[1727691540924,23.776884,154.55,154.48,6.4731]
[1727691541127,6.4713,154.53,154.48,6.4731]
[1727691541329,6.4713,154.53,154.49,7.69952966]
[1727691541550,23.776884,154.55,154.49,7.69952966]
[1727691541551,6.4709,154.54,154.49,6.4728]
[1727691541828,6.4713,154.53,154.47,6.4733]
[1727691542031,30.249284,154.51,154.46,21.7771]
[1727691542329,6.4704,154.55,154.5,6.4721]
[1727691542536,6.4704,154.55,154.51,6.472]
[1727691542716,8.08872806,154.54,154.46,21.7771]
[1727691543029,6.4712,154.53,154.49,6.4726]
[1727691543229,1.61804868,154.52,154.46,21.7771]
[1727691543440,1.61804868,154.52,154.48,6.473]
[1727691543621,1.61804868,154.52,154.46,21.7771]
[1727691543622,1.61804868,154.52,154.47,0.25098]
[1727691543817,1.61804868,154.52,154.5,0.12549]
[1727691544218,1.61804868,154.52,154.5,1.0]
[1727691544420,31.86725748,154.51,154.5,1.0]
[1727691544741,30.248984,154.51,154.5,1.0]
[1727691545736,30.248984,154.51,154.42,15.0503]
[1727691545737,23.776884,154.51,154.43,4.55516346]
[1727691546044,6.4743,154.46,154.44,4.55516346]
[1727691546209,6.4743,154.46,154.42,15.0503]
[1727691546210,6.4743,154.46,154.43,4.55516346]
[1727691546414,6.4738,154.47,154.42,26.08116346]
[1727691546743,23.776884,154.49,154.43,6.4754]
[1727691546744,1.61870631,154.46,154.43,6.4754]
[1727691547036,6.4737,154.47,154.43,6.4754]
[1727691547419,30.250084,154.49,154.44,6.4749]
[1727691547614,23.776884,154.49,154.43,5.78297393]
[1727691547931,23.776884,154.51,154.44,4.80614346]
[1727691548240,23.776884,154.51,154.42,15.0503]
[1727691548241,6.4708,154.54,154.49,6.4727]
[1727691549619,23.776884,154.53,154.45,0.25098]
[1727691549923,16.1699,154.61,154.49,0.25098]
[1727691550120,6.4708,154.54,154.49,6.59799]
[1727691550324,6.5304,154.62,154.48,15.745]
[1727691550325,1.61814022,154.53,154.48,15.745]
[1727691550556,6.4716,154.52,154.48,15.745]
[1727691550723,1.61829241,154.51,154.48,15.745]
[1727691550929,6.4721,154.51,154.48,15.745]
[1727691551239,6.4721,154.51,154.45,4.55430779]
[1727691551240,6.4721,154.51,154.46,0.25098]
[1727691551447,6.4729,154.49,154.45,4.55430779]
[1727691551643,1.6185807,154.48,154.44,28.8099]
[1727691551947,6.4737,154.47,154.42,6.4756]
[1727691552149,1.61874837,154.46,154.42,6.4756]
[1727691552352,8.09284837,154.46,154.42,6.4756]
[1727691552648,31.87027423,154.45,154.41,4.55580823]
[1727691552827,1.61895553,154.44,154.4,28.8113]
[1727691553228,1.61899734,154.43,154.36,15.3877]
[1727691553431,30.251484,154.45,154.39,6.4767]
[1727691553646,23.776884,154.46,154.38,4.55863784]
[1727691553852,6.4741,154.47,154.42,6.4758]
[1727691554029,1.61874504,154.46,154.42,6.4758]
[1727691554644,1.61874504,154.46,154.43,0.12549]
[1727691555048,8.09284504,154.46,154.41,0.25098]
[1727691555255,6.4741,154.46,154.41,0.25098]
[1727691555454,6.4746,154.45,154.41,0.12549]
[1727691555628,6.4746,154.45,154.4,11.03649746]
[1727691555629,23.776884,154.43,154.4,6.4763]
[1727691555833,23.776884,154.44,154.38,4.56019746]
[1727691556145,23.776884,154.44,154.39,4.56019746]
[1727691556458,6.4746,154.45,154.36,15.3877]
[1727691556459,6.4746,154.45,154.4,6.4766]
[1727691556831,17.0208212,154.56,154.41,5.78839536]
[1727691557034,17.0208212,154.56,154.45,6.4741]
[1727691557338,6.4721,154.51,154.45,6.4741]
[1727691557535,1.61846414,154.5,154.44,11.16058746]
[1727691557730,6.4724,154.51,154.44,6.60039]
[1727691557932,33.1958212,154.56,154.44,6.60039]
[1727691558158,6.4724,154.5,154.44,6.60039]
[1727691558460,33.1958212,154.56,154.44,0.12549]
[1727691558461,8.09144325,154.49,154.44,0.12549]
[1727691558752,6.4729,154.49,154.44,4.68568746]
[1727691559062,6.4729,154.49,154.44,11.16167878]
[1727691559246,17.1463112,154.56,154.44,0.12549]
[1727691559452,30.250384,154.48,154.43,6.4753]
[1727691559654,1.61868491,154.47,154.43,6.4753]
[1727691561362,30.250384,154.48,154.43,6.4753]
[1727691561662,6.4721,154.51,154.46,0.25098]
[1727691561831,1.61836804,154.5,154.46,6.72508]
[1727691562647,6.4716,154.52,154.47,6.4737]
[1727691562848,1.61824574,154.51,154.46,6.72508]
[1727691563843,8.09034574,154.51,154.46,6.72508]
[1727691564164,6.4721,154.51,154.46,6.72508]
[1727691564762,6.4725,154.5,154.46,0.12549]
[1727691564958,1.61841444,154.49,154.46,0.12549]
[1727691565164,6.4733,154.48,154.43,6.475]
[1727691565335,8.09151444,154.49,154.44,6.4748]
[1727691565540,1.61854134,154.48,154.45,0.12549]
[1727691565741,1.46081651,154.48,154.45,0.12549]
[1727691566673,6.4736,154.48,154.43,6.4753]
[1727691566838,1.61854978,154.47,154.43,6.4753]
[1727691567168,6.4736,154.48,154.43,6.4753]
[1727691568345,23.776884,154.52,154.44,1.42043659]
[1727691568674,20.0,154.54,154.39,21.151]
[1727691568675,8.09082171,154.51,154.46,6.4741]
[1727691568973,6.4725,154.5,154.47,0.12549]
[1727691569138,1.61842171,154.51,154.47,0.12549]
[1727691569345,6.4721,154.51,154.47,0.12549]
[1727691570258,6.4708,154.54,154.5,6.4722]
[1727691570448,0.8300212,154.56,154.48,0.12549]
[1727691570661,0.8300212,154.56,154.52,6.59679]
[1727691570843,7.3000212,154.56,154.52,6.59679]
[1727691571245,7.3000212,154.56,154.51,0.25098]
[1727691571246,1.61769896,154.55,154.51,0.25098]
[1727691571464,1.61769896,154.55,154.51,0.12549]
[1727691571647,1.61769896,154.55,154.5,6.4721]
[1727691572766,8.08809896,154.55,154.5,6.4721]
[1727691573063,0.8300212,154.56,154.54,0.12549]
[1727691573257,0.8300212,154.56,154.54,6.4704]
[1727691573464,0.8300212,154.56,154.55,0.12549]
[1727691573767,0.8300212,154.56,154.51,0.25098]
[1727691574149,2.44773851,154.56,154.51,0.25098]
[1727691574549,8.91773851,154.56,154.51,0.25098]
[1727691574876,6.4708,154.54,154.51,0.12549]
[1727691575041,1.61794755,154.53,154.51,0.12549]
[1727691575246,1.61794755,154.53,154.48,0.12549]
[1727691575442,6.4708,154.54,154.48,0.12549]
[1727691575668,6.4712,154.53,154.47,16.1167]
[1727691575964,23.776884,154.52,154.47,16.1167]
[1727691576264,6.4721,154.51,154.47,16.1167]
[1727691576449,6.4717,154.52,154.47,22.5901]
[1727691576869,1.61821331,154.51,154.47,16.1167]
[1727691577072,6.4725,154.5,154.43,15.7302]
[1727691577377,39.953684,154.55,154.45,6.4744]
[1727691577378,20.0,154.54,154.45,6.4744]
[1727691577589,6.4729,154.49,154.45,6.4744]
[1727691577866,6.4729,154.49,154.43,15.7302]
[1727691577867,6.4723,154.51,154.46,6.4741]
[1727691578072,6.4723,154.51,154.46,7.76888034]
[1727691578245,6.4723,154.51,154.46,6.4741]
[1727691579074,20.0,154.54,154.46,1.29468378]
[1727691579280,6.4704,154.55,154.5,6.4724]
[1727691579773,6.4708,154.54,154.5,6.4724]
[1727691581380,6.4708,154.54,154.49,6.59829]
[1727691581574,6.4704,154.55,154.5,1.2944008]
[1727691581785,6.4704,154.55,154.5,0.12549]
[1727691582361,6.4704,154.55,154.5,6.59789]
[1727691582566,6.4704,154.55,154.51,0.12549]
[1727691583586,1.61777824,154.54,154.5,0.12549]
[1727691583874,6.4708,154.54,154.49,0.12549]
[1727691584068,1.6180028,154.53,154.49,0.12549]
[1727691584584,6.4724,154.5,154.46,6.4741]
[1727691584795,8.09135472,154.49,154.43,15.7302]
[1727691585077,6.4733,154.48,154.44,6.4749]
[1727691585284,6.4728,154.5,154.44,6.4749]
[1727691585589,6.4728,154.5,154.45,6.4742]
[1727691585791,6.4729,154.49,154.44,6.4749]
[1727691586089,23.776884,154.52,154.43,15.7302]
[1727691586674,6.4732,154.49,154.44,6.4746]
[1727691587574,6.4732,154.49,154.45,0.12549]
[1727691589290,6.4732,154.49,154.44,6.4746]
[1727691589488,1.61857554,154.48,154.43,15.7302]
[1727691589679,23.776884,154.47,154.43,15.7302]
[1727691589871,23.776884,154.47,154.38,15.1173]
[1727691590066,6.4745,154.45,154.41,6.4761]
[1727691590476,6.4745,154.45,154.38,15.1173]
[1727691590679,8.09410258,154.44,154.4,6.4765]
[1727691590877,6.4759,154.42,154.38,21.5944]
[1727691591072,8.09506258,154.42,154.38,21.5944]
[1727691591297,1.61920076,154.41,154.38,15.1173]
[1727691592403,8.09550076,154.41,154.37,6.4776]
[1727691592606,23.776884,154.44,154.38,1.2954675]
[1727691592901,6.4754,154.43,154.34,15.9284]
[1727691593078,6.4754,154.43,154.38,6.4774]
[1727691593279,1.61921692,154.43,154.34,15.9284]
[1727691593488,6.4758,154.42,154.35,1.29539998]
[1727691593674,6.4758,154.42,154.38,6.4774]
[1727691597304,23.776884,154.44,154.34,15.9284]
[1727691597305,6.4771,154.39,154.34,15.9284]
[1727691598205,6.4771,154.39,154.35,6.4786]
[1727691598376,8.09703657,154.38,154.3,15.612]
[1727691598577,6.478,154.37,154.33,6.4794]
[1727691599178,6.4775,154.38,154.33,6.4794]
[1727691600105,23.776884,154.42,154.34,1.29584413]
[1727691600302,6.4767,154.4,154.35,6.4786]
[1727691600775,6.4774,154.39,154.34,6.4789]
[1727691600979,31.87414107,154.38,154.34,6.4789]
[1727691601299,31.87414107,154.38,154.32,1.2957732]
[1727691601300,6.4776,154.38,154.32,1.2957732]
[1727691601603,6.4776,154.38,154.34,6.4791]
[1727691601780,6.4776,154.38,154.33,6.60479]
[1727691602491,6.4767,154.4,154.36,6.4782]
[1727691602693,6.4767,154.4,154.35,6.72958]
[1727691603111,31.8739062,154.39,154.34,6.479]
[1727691603321,30.254384,154.38,154.34,6.479]
[1727691603613,20.0,154.43,154.36,6.60379]
[1727691603788,6.477,154.4,154.36,0.12549]
[1727691603991,20.0,154.43,154.34,0.12549]
[1727691604813,23.776884,154.42,154.34,0.12549]
[1727691605017,6.4774,154.39,154.34,6.60419]
[1727691605201,6.4777,154.38,154.34,0.12549]
[1727691606516,6.4777,154.38,154.34,6.60449]
[1727691607129,6.4784,154.36,154.3,15.612]
[1727691607418,6.4788,154.35,154.31,6.4803]
[1727691607823,23.776884,154.39,154.31,1.29595129]
[1727691608010,43.776884,154.4,154.31,1.29595129]
[1727691608211,6.478,154.37,154.31,1.29595129]
[1727691608399,6.478,154.37,154.32,6.4797]
[1727691608829,6.478,154.37,154.33,6.4795]
[1727691609194,6.4783,154.36,154.32,6.73088]
[1727691609921,6.478,154.37,154.32,6.73088]
[1727691610723,8.09838177,154.36,154.32,6.60539]
[1727691610899,6.4786,154.36,154.32,6.60539]
[1727691611797,6.4778,154.38,154.33,6.60479]
[1727691612118,39.969084,154.4,154.32,6.60539]
[1727691612419,6.4784,154.36,154.32,6.60539]
[1727691612828,23.776884,154.38,154.3,15.612]
[1727691613120,6.4789,154.35,154.3,22.0925]
[1727691614408,21.3858,154.32,154.2,22.34162163]
[1727691614715,6.4814,154.29,154.25,6.4828]
[1727691614915,21.3858,154.32,154.25,6.4828]
[1727691614916,6.4809,154.3,154.25,6.4828]
[1727691615299,6.4813,154.29,154.25,6.4828]
[1727691615523,6.4809,154.3,154.25,6.4828]
[1727691616306,23.776884,154.31,154.25,6.4828]
[1727691616526,21.3858,154.32,154.24,6.4833]
[1727691616527,6.4813,154.29,154.24,6.4833]
[1727691616911,1.62060291,154.31,154.25,6.73388]
[1727691616912,6.4809,154.3,154.25,6.73388]
[1727691617512,39.975384,154.34,154.27,6.482]
[1727691617827,6.4805,154.31,154.27,0.12549]
[1727691618532,8.10143372,154.3,154.26,0.12549]
[1727691618731,1.6205506,154.29,154.26,0.12549]
[1727691619806,1.6205506,154.29,154.25,6.60829]
[1727691620118,6.4817,154.28,154.25,0.12549]
[1727691620320,6.4813,154.29,154.25,0.12549]
[1727691620628,1.62060255,154.28,154.25,0.12549]
[1727691620811,6.4813,154.29,154.25,0.12549]
[1727691621017,1.62060401,154.28,154.25,0.12549]
[1727691621318,20.0,154.33,154.25,6.4826]
[1727691621523,6.4805,154.31,154.27,0.12549]
[1727691621843,1.62043508,154.3,154.27,0.12549]
[1727691622228,1.62043508,154.3,154.26,6.4822]
[1727691622429,6.4805,154.31,154.26,6.4822]
[1727691622817,6.4809,154.3,154.26,6.4822]
[1727691624922,6.4805,154.31,154.27,6.4819]
[1727691625712,6.4799,154.33,154.28,6.4816]
[1727691625933,6.4799,154.33,154.27,0.12549]
[1727691625934,6.4799,154.33,154.27,15.51269]
[1727691626113,6.4792,154.34,154.29,6.60669]
[1727691626726,6.4788,154.35,154.3,6.60609]
[1727691626910,16.1951,154.37,154.28,6.4813]
[1727691626911,6.4799,154.33,154.28,6.4813]
[1727691627223,6.4799,154.33,154.29,0.12549]
[1727691628537,1.62021304,154.32,154.27,15.3872]
[1727691628827,6.4812,154.3,154.27,15.3872]
[1727691630520,1.62044535,154.29,154.23,22.0139]
[1727691630717,6.482,154.28,154.23,22.0139]
[1727691631216,8.10273495,154.27,154.23,15.9005]
[1727691631408,1.62081709,154.26,154.23,15.9005]
[1727691631610,8.10351709,154.26,154.23,15.9005]
[1727691631920,6.4827,154.26,154.23,15.9005]
[1727691632433,6.4824,154.27,154.23,15.9005]
[1727691632729,1.62082655,154.26,154.23,15.9005]
[1727691633132,6.4826,154.26,154.23,15.9005]
[1727691633522,6.4834,154.24,154.2,6.485]
[1727691634120,8.10492707,154.23,154.19,12.7523]
[1727691634313,6.4839,154.23,154.19,6.4853]
[1727691634921,6.4839,154.23,154.18,15.9009]
[1727691635121,6.4839,154.23,154.18,22.3864]
[1727691635412,1.62120982,154.22,154.18,22.3864]
[1727691635617,1.62120982,154.22,154.18,15.9009]
[1727691635830,6.4846,154.21,154.18,15.9009]
[1727691636422,6.4856,154.19,154.14,15.4358]
[1727691636615,1.62165482,154.18,154.14,15.4358]
[1727691636820,6.4856,154.19,154.14,15.4358]
[1727691637530,6.4856,154.19,154.14,21.9233]
[1727691637723,6.4856,154.19,154.15,0.12549]
[1727691638540,6.485,154.2,154.16,6.4867]
[1727691638844,1.62156471,154.19,154.16,0.12549]
[1727691639446,1.62156471,154.19,154.15,6.61249]
[1727691641549,6.485,154.2,154.16,6.4866]
[1727691641842,23.776884,154.22,154.17,6.4862]
[1727691642041,6.4853,154.2,154.14,15.4358]
[1727691642224,20.0,154.25,154.14,15.4358]
[1727691642420,6.4842,154.22,154.18,6.4857]
[1727691642626,36.208,154.25,154.18,6.4857]
[1727691642840,6.4839,154.23,154.18,6.4857]
[1727691643233,15.9851,154.26,154.19,6.4853]
[1727691643434,6.4835,154.24,154.19,6.4853]
[1727691644146,16.2045,154.28,154.15,0.25098]
[1727691644376,6.4834,154.24,154.2,6.485]
[1727691645434,1.62116917,154.23,154.2,6.485]
[1727691645630,16.2045,154.28,154.2,6.485]
[1727691645831,6.4831,154.25,154.2,6.485]
[1727691646756,22.107,154.3,154.23,6.4838]
[1727691647053,6.4805,154.31,154.25,0.12549]
[1727691647227,6.4805,154.31,154.26,6.4824]
[1727691647843,8.10159997,154.3,154.25,6.73378]
[1727691648440,6.4814,154.29,154.25,0.12549]
[1727691648640,8.10264307,154.28,154.23,6.4835]
[1727691648950,1.6207687,154.27,154.24,6.4833]
[1727691650340,1.6207687,154.27,154.24,0.12549]
[1727691650951,1.6207687,154.27,154.24,6.4832]
[1727691651959,6.482,154.28,154.24,6.4832]
[1727691652364,1.62074524,154.27,154.24,0.12549]
[1727691652564,8.10284524,154.27,154.23,6.4837]
[1727691652863,8.10331549,154.26,154.22,0.25098]
[1727691653058,1.62091799,154.25,154.22,0.25098]
[1727691653648,6.4822,154.27,154.22,0.25098]
[1727691653846,1.6208947,154.31,154.22,0.25098]
[1727691653847,6.4818,154.28,154.23,6.4834]
[1727691654165,8.10317862,154.27,154.23,6.4834]
[1727691654966,1.62087056,154.26,154.23,6.4834]
[1727691655861,1.62086998,154.26,154.23,6.4834]
[1727691656664,6.4823,154.27,154.23,6.4834]
[1727691657958,6.4817,154.28,154.24,6.4831]
[1727691658158,6.4815,154.29,154.25,6.4827]
[1727691660266,1.62060475,154.28,154.25,6.4827]
[1727691660555,6.4797,154.33,154.27,0.25098]
[1727691660875,6.4797,154.33,154.27,16.48978]
[1727691661043,6.4797,154.33,154.29,6.4812]
[1727691661245,8.10025623,154.32,154.28,6.4816]
[1727691661456,8.10082649,154.31,154.27,16.36429]
[1727691661675,6.4805,154.31,154.27,16.36429]
[1727691661871,6.4805,154.31,154.27,22.84609]
[1727691662165,6.4801,154.32,154.28,6.60719]
[1727691662665,6.4809,154.3,154.27,0.25098]
[1727691662867,1.62038814,154.29,154.27,0.12549]
[1727691663198,8.10188814,154.29,154.25,0.25098]
[1727691663405,20.0,154.31,154.23,16.1629]
[1727691663579,20.0,154.31,154.2,6.2675]
[1727691663580,20.0,154.29,154.2,6.2675]
[1727691663777,39.981484,154.28,154.2,6.2675]
[1727691663987,39.981484,154.28,154.19,15.828]
[1727691663988,6.4842,154.22,154.19,15.828]
[1727691664483,6.4842,154.22,154.16,12.6465]
[1727691664891,1.62131136,154.21,154.16,6.1602]
[1727691665087,6.4842,154.22,154.17,6.486]
[1727691665294,8.10603065,154.21,154.16,12.6468]